bitfinex/quotes_ETHUSD_20241101
["timestamp","ask_amount","ask_price","bid_price","bid_amount"]
[1730475446156,0.7538,2524.3,2523.0,0.7863]
[1730475446389,3.96142,2524.4,2523.3,0.7863]
[1730475446683,3.96234,2523.8,2523.2,3.96315]
[1730475446852,3.96234,2523.8,2523.2,4.755801]
[1730475447063,3.96259,2523.6,2523.0,3.96351]
[1730475447297,0.7538,2523.7,2523.1,3.96323]
[1730475447508,4.71624,2523.7,2522.8,3.96371]
[1730475447816,3.96259,2523.6,2523.0,3.96353]
[1730475448109,3.96259,2523.6,2523.0,3.96347]
[1730475448266,3.96196,2524.0,2522.6,8.78275575]
[1730475448467,3.96272,2523.6,2522.6,0.7863]
[1730475448692,3.96227,2523.8,2523.1,3.96336]
[1730475449207,3.96253,2523.7,2523.0,3.96349]
[1730475449417,4.75648,2523.3,2522.6,3.96406]
[1730475449705,0.7933,2523.3,2522.7,3.96388]
[1730475449907,3.96299,2523.4,2522.7,3.96388]
[1730475450112,7.92538,2523.6,2522.7,3.96388]
[1730475450303,0.817,2523.7,2523.0,3.96344]
[1730475450610,4.77956,2523.7,2523.0,3.96344]
[1730475450816,4.77956,2523.7,2522.5,4.0890328]
[1730475450817,0.817,2523.7,2522.9,3.96369]
[1730475451017,0.817,2523.7,2523.1,3.96328]
[1730475451018,4.77949,2523.7,2523.1,3.96328]
[1730475451314,4.77949,2523.7,2523.2,0.06960115]
[1730475451480,0.7981,2524.1,2523.3,3.96293]
[1730475451812,0.7981,2524.1,2523.5,3.96271]
[1730475451969,0.7981,2524.1,2523.6,3.96258]
[1730475452174,4.75995,2524.1,2523.6,0.06880977]
[1730475452426,0.7679,2524.7,2523.8,3.96227]
[1730475452576,3.96065,2524.9,2524.2,7.92312]
[1730475452908,3.96065,2524.9,2523.7,0.8184]
[1730475452909,3.95979,2525.4,2524.5,3.96109]
[1730475453111,5.22169872,2525.4,2524.5,3.96109]
[1730475453313,5.22169872,2525.4,2524.1,3.96172]
[1730475453314,4.44309872,2525.4,2524.7,3.96086]
[1730475453619,5.32425427,2525.8,2524.7,3.96086]
[1730475453620,3.9594,2525.7,2525.1,3.96019]
[1730475453915,0.53378427,2526.4,2525.3,3.95991]
[1730475453916,3.95897,2526.0,2525.3,3.95991]
[1730475454290,8.40049872,2526.2,2525.4,0.05872649]
[1730475454477,2.32155498,2526.7,2525.4,0.05872649]
[1730475454478,3.95803,2526.6,2525.8,3.9591]
[1730475454673,3.95736,2527.0,2526.4,3.95819]
[1730475454929,3.95703,2527.2,2526.6,3.95777]
[1730475455088,7.91408,2527.2,2526.6,3.95777]
[1730475455407,3.95703,2527.2,2526.7,0.08059507]
[1730475455623,3.95748,2526.9,2526.7,0.08059507]
[1730475455914,3.95748,2526.9,2526.4,0.773]
[1730475456128,4.76799723,2526.9,2526.8,0.08034137]
[1730475456332,3.95788,2526.6,2525.0,0.7703]
[1730475456476,3.95973,2525.5,2525.0,0.7703]
[1730475456917,3.95972,2525.5,2525.0,0.7703]
[1730475457122,3.96001,2525.3,2524.7,3.96076]
[1730475457323,3.95994,2525.3,2524.8,5.19552345]
[1730475457475,3.95994,2525.3,2524.5,0.7867]
[1730475457476,3.96033,2525.1,2524.5,4.74784]
[1730475457680,4.355974,2525.3,2524.6,3.96102]
[1730475457875,4.355974,2525.3,2524.6,4.06500006]
[1730475458313,4.355974,2525.3,2524.6,0.10398006]
[1730475458314,3.96049,2525.0,2524.6,0.10398006]
[1730475458673,3.96049,2525.0,2524.2,3.96158]
[1730475458674,3.96049,2525.0,2524.2,3.96151]
[1730475458879,3.96049,2525.0,2524.6,0.10375016]
[1730475459118,3.96049,2525.0,2524.2,3.96156]
[1730475459415,3.96049,2525.0,2524.6,0.10375016]
[1730475459585,3.96014,2525.2,2524.6,3.96088]
[1730475459791,3.96014,2525.2,2524.6,0.10375016]
[1730475459792,0.791997,2525.2,2524.6,0.10375016]
[1730475459978,6.96086,2524.7,2523.5,4.75478]
[1730475460173,3.96209,2524.0,2523.5,0.7921]
[1730475460379,3.96243,2523.7,2523.6,0.0894245]
[1730475460817,3.96278,2523.5,2523.1,2.42285509]
[1730475460979,0.7994,2524.1,2523.1,2.42285509]
[1730475460980,3.96213,2523.9,2523.1,2.42285509]
[1730475461184,3.96199,2524.0,2523.2,5.59628514]
[1730475461390,3.96225,2523.9,2523.3,3.96303]
[1730475461604,3.96138,2524.4,2523.3,3.96303]
[1730475461605,3.96182,2524.1,2523.3,0.07925478]
[1730475461806,3.96143,2524.4,2523.8,3.96223]
[1730475461980,7.92218,2524.6,2523.8,3.96217]
[1730475462177,3.96102,2524.6,2523.8,0.396217]
[1730475462518,3.961,2524.7,2524.1,3.9618]
[1730475462687,3.96096,2524.7,2524.0,4.72884]
[1730475462888,3.96136,2524.4,2523.7,3.96242]
[1730475463091,3.96242,2523.8,2523.2,3.96313]
[1730475463490,3.96205,2524.0,2523.3,3.96297]
[1730475463715,0.6566698,2524.0,2523.0,3.96341]
[1730475463926,3.96212,2523.9,2523.4,0.07709342]
[1730475464125,3.96212,2523.9,2523.3,3.96301]
[1730475464288,3.96212,2523.9,2523.5,0.07683906]
[1730475464488,7.92437,2523.9,2523.4,0.07709342]
[1730475464793,3.96212,2523.9,2523.6,0.07658471]
[1730475464991,3.96212,2523.9,2523.5,0.07683906]
[1730475465317,4.754518,2523.9,2523.6,0.07658471]
[1730475465819,4.754518,2523.9,2523.4,3.96289]
[1730475465979,3.96212,2523.9,2523.7,0.07633039]
[1730475466183,3.96212,2523.9,2523.4,3.96289]
[1730475466184,3.96119,2524.5,2523.3,7.92612]
[1730475466385,3.96102,2524.6,2524.0,3.96187]
[1730475466612,3.96084,2524.8,2524.1,3.96168]
[1730475466819,3.96046,2525.0,2524.1,0.0753133]
[1730475466989,3.96018,2525.2,2524.2,0.07922177]
[1730475467189,3.96018,2525.2,2524.7,3.96085]
[1730475467424,3.96018,2525.2,2524.4,5.19552345]
[1730475467425,3.95984,2525.4,2524.9,3.96051]
[1730475467636,3.95948,2525.6,2525.0,3.96038]
[1730475467781,4.751351,2525.6,2524.9,7.92091]
[1730475467986,3.95922,2525.8,2525.1,3.9601]
[1730475468182,3.9583,2526.4,2525.2,5.19552345]
[1730475468390,0.48015015,2526.8,2525.8,3.95902]
[1730475468587,3.9582,2526.4,2525.8,3.95902]
[1730475468888,0.48015015,2526.8,2525.6,9.15490345]
[1730475469082,4.7456,2526.9,2526.0,3.95872]
[1730475469290,3.9575,2526.9,2526.3,3.95833]
[1730475469528,7.91501,2526.9,2526.3,3.95833]
[1730475469682,7.91501,2526.9,2525.7,0.91549035]
[1730475469683,3.95729,2527.0,2526.4,3.9581]
[1730475470123,0.8247,2527.3,2526.3,0.8199]
[1730475470283,3.95736,2527.0,2526.4,3.95817]
[1730475470484,3.95658,2527.5,2526.8,3.95744]
[1730475470688,3.95658,2527.5,2526.7,3.95766]
[1730475470884,3.95566,2528.1,2526.5,3.95796]
[1730475470885,3.9562,2527.7,2526.5,3.95796]
[1730475471086,3.95792,2526.6,2526.0,5.19552345]
[1730475471320,3.95877,2526.1,2525.4,3.95972]
[1730475471594,3.95901,2525.9,2525.4,3.95972]
[1730475471798,3.95901,2525.9,2525.3,4.75741]
[1730475472019,3.9593,2525.7,2525.3,0.7975]
[1730475472332,3.95882,2526.0,2524.8,0.7764]
[1730475472532,3.95983,2525.4,2524.9,3.96053]
[1730475472823,3.96002,2525.3,2524.8,0.7764]
[1730475473023,3.95962,2525.5,2524.9,3.96046]
[1730475473322,0.791912,2525.5,2525.0,3.96039]
[1730475473528,3.9595,2525.6,2525.0,7.9207]
[1730475473824,3.9595,2525.6,2525.0,3.9603]
[1730475473982,7.9191,2525.6,2525.0,3.9603]
[1730475474181,3.95985,2525.4,2524.8,4.73699]
[1730475474392,3.95985,2525.4,2524.9,3.96054]
[1730475474607,3.95955,2525.6,2525.1,3.96023]
[1730475474793,3.95906,2525.9,2524.8,0.7764]
[1730475475124,3.95928,2525.8,2525.1,3.96021]
[1730475475285,3.95921,2525.8,2524.8,0.7764]
[1730475475488,3.95976,2525.5,2524.9,7.92102]
[1730475475741,3.95979,2525.4,2524.8,0.7764]
[1730475476086,3.95979,2525.4,2524.9,3.96046]
[1730475476335,6.95888,2526.0,2525.1,3.96015]
[1730475476336,3.95943,2525.7,2525.1,3.96015]
[1730475476627,3.95968,2525.5,2524.9,3.96044]
[1730475476808,3.95968,2525.5,2524.8,0.7764]
[1730475476809,3.95938,2525.7,2525.1,3.96014]
[1730475477265,0.8173,2526.0,2524.4,0.7875]
[1730475477459,0.395877,2526.1,2523.6,0.7875]
[1730475477460,3.55,2525.4,2523.6,0.7875]
[1730475477762,3.55,2525.4,2523.7,0.07577989]
[1730475477763,3.96133,2524.4,2523.7,0.07577989]
[1730475477914,3.96102,2524.6,2523.2,7.92623]
[1730475478117,3.0,2524.5,2523.8,0.07552559]
[1730475478345,3.0,2524.5,2523.1,0.7875]
[1730475478346,3.96212,2523.9,2523.2,3.96311]
[1730475478521,3.9619,2524.1,2523.5,3.96273]
[1730475478733,3.96197,2524.0,2523.3,7.92599]
[1730475478937,3.9619,2524.1,2523.1,0.7875]
[1730475479135,3.96149,2524.3,2523.7,3.96228]
[1730475479333,7.92343,2524.2,2523.5,3.9626]
[1730475479541,3.96139,2524.4,2523.8,3.96227]
[1730475479733,3.96183,2524.1,2523.6,4.02908994]
[1730475480065,3.96176,2524.2,2523.9,0.06586239]
[1730475480232,6.96104,2524.6,2524.0,0.06563991]
[1730475480432,3.96166,2524.2,2524.0,0.06563991]
[1730475480639,3.96141,2524.4,2523.2,5.67062445]
[1730475480640,3.96149,2524.3,2523.8,3.96227]
[1730475480849,3.9623,2523.8,2523.3,3.96299]
[1730475481160,6.96135,2524.4,2523.4,3.96287]
[1730475481359,3.96261,2523.6,2523.4,0.06697505]
[1730475481573,3.96275,2523.5,2523.4,0.06697505]
[1730475481870,3.96275,2523.5,2523.4,0.05953338]
[1730475482023,3.96253,2523.7,2523.1,4.75078]
[1730475482223,3.96283,2523.5,2523.1,0.7875]
[1730475482423,3.96283,2523.5,2522.5,0.1247628]
[1730475482424,4.359273,2523.4,2523.2,0.0599291]
[1730475482670,3.7556,2523.3,2522.5,0.1247628]
[1730475482961,3.96394,2522.8,2522.6,0.05500498]
[1730475484048,3.964,2522.7,2522.6,0.05500498]
[1730475484269,6.964,2522.7,2522.5,0.1247628]
[1730475484565,3.96394,2522.8,2522.5,0.1247628]
[1730475484566,3.96386,2522.8,2522.5,0.1247628]
[1730475484765,3.96385,2522.8,2522.5,0.1247628]
[1730475484970,3.96374,2522.9,2522.5,0.1247628]
[1730475484971,3.964,2522.7,2522.6,0.04607534]
[1730475485345,6.96416,2522.6,2522.5,0.1247628]
[1730475485543,3.96416,2522.6,2522.5,0.1247628]
[1730475485747,3.964,2522.7,2522.5,0.1787704]
[1730475485975,7.92815,2522.7,2522.5,0.1787704]
[1730475486283,3.964,2522.7,2522.5,0.1787704]
[1730475486458,7.74366,2522.6,2522.5,0.1787704]
[1730475486789,7.74366,2522.6,2522.5,0.1247628]
[1730475487088,6.96416,2522.6,2522.5,0.1247628]
[1730475487438,3.964,2522.7,2522.5,0.1247628]
[1730475487872,3.96416,2522.6,2522.5,0.1247628]
[1730475488070,6.96416,2522.6,2522.5,0.1247628]
[1730475488323,3.96416,2522.6,2522.5,0.1247628]
[1730475488657,7.756976,2522.6,2522.5,0.1247628]
[1730475488844,9.123576,2522.6,2522.5,2.8e-06]
[1730475489047,9.123576,2522.6,2520.7,0.7822]
[1730475489048,3.55,2522.5,2519.6,1.21852276]
[1730475489249,3.55,2522.5,2519.4,1.586682]
[1730475489250,12.16361345,2520.1,2519.4,1.586682]
[1730475489481,16.24994136,2520.1,2520.0,2.8e-06]
[1730475489783,0.55,2519.9,2518.3,2.04797016]
[1730475489997,3.97042,2518.7,2518.3,2.04797016]
[1730475490196,3.97077,2518.4,2518.3,2.04797016]
[1730475490343,3.97077,2518.4,2517.5,2.15163335]
[1730475490858,5.19552345,2519.4,2517.5,2.15163335]
[1730475490859,3.9695,2519.3,2518.3,3.97087]
[1730475491056,0.8166,2519.7,2517.9,0.7822]
[1730475491057,3.96914,2519.5,2518.4,0.397087]
[1730475491257,3.0,2519.4,2517.9,4.75375]
[1730475491456,5.19552345,2519.6,2517.9,4.75375]
[1730475491457,3.97021,2518.8,2517.9,4.75372]
[1730475491657,0.55,2519.3,2517.9,4.75372]
[1730475491658,3.96936,2519.3,2518.3,3.9708]
[1730475491954,3.96968,2519.1,2518.4,3.97074]
[1730475492183,3.96936,2519.3,2518.5,3.97061]
[1730475492484,3.96861,2519.8,2519.0,3.96982]
[1730475492695,3.96861,2519.8,2519.0,4.75202]
[1730475492846,3.96827,2520.0,2519.2,3.96947]
[1730475493184,4.78406,2520.5,2519.0,0.7822]
[1730475493482,4.78406,2520.5,2519.5,3.96903]
[1730475493483,3.9679,2520.3,2519.5,3.96903]
[1730475493648,3.96806,2520.2,2519.4,3.96906]
[1730475493848,3.96833,2520.0,2519.2,3.96947]
[1730475494068,0.875203,2520.3,2519.0,0.7822]
[1730475494295,0.875203,2520.3,2518.6,0.40500237]
[1730475494296,3.96907,2519.5,2518.7,3.97027]
[1730475494466,3.96907,2519.5,2518.6,7.94069]
[1730475494644,3.96907,2519.5,2518.6,4.845729]
[1730475494846,3.96907,2519.5,2518.7,0.05595222]
[1730475495043,3.96407,2519.5,2518.7,4.02620222]
[1730475495272,3.58395927,2520.2,2519.2,3.96949]
[1730475495457,3.0,2520.1,2519.2,3.96949]
[1730475495659,3.78403168,2520.1,2519.3,0.05488012]
[1730475495935,3.96945,2519.3,2518.4,3.97062]
[1730475496136,6.96953,2519.2,2518.4,3.97062]
[1730475496433,3.96971,2519.1,2518.3,3.97082]
[1730475496632,3.96983,2519.0,2518.3,3.97091]
[1730475496858,3.96983,2519.0,2518.2,3.97102]
[1730475496859,1.093936,2519.0,2518.2,3.97102]
[1730475497136,3.0,2518.8,2517.6,4.79788]
[1730475497308,3.97089,2518.4,2517.6,4.7979]
[1730475497510,3.97024,2518.8,2517.6,0.90533976]
[1730475497695,7.94052,2518.8,2518.0,3.97131]
[1730475497896,7.94052,2518.8,2518.1,3.97117]
[1730475497897,3.97024,2518.8,2518.1,3.97117]
[1730475498237,3.97024,2518.8,2518.1,3.87117]
[1730475498396,3.0,2519.1,2517.6,0.8259]
[1730475498397,3.96969,2519.1,2517.6,0.8259]
[1730475498598,3.0,2519.2,2518.4,3.97072]
[1730475499133,3.0,2519.2,2518.4,3.97066]
[1730475499439,3.0,2518.8,2517.7,3.97176]
[1730475499595,3.0,2518.4,2517.2,5.19552345]
[1730475499799,3.9715,2518.0,2517.0,3.97288]
[1730475499999,3.9715,2518.0,2517.1,3.97271]
[1730475500198,3.0,2518.1,2517.4,3.92225]
[1730475500410,0.8189,2518.5,2516.8,9.16881345]
[1730475500411,0.8189,2518.5,2516.8,9.16880345]
[1730475500645,0.8189,2518.5,2516.8,5.19552345]
[1730475500855,3.97135,2518.1,2517.2,3.97254]
[1730475501044,3.0,2518.2,2516.8,3.97321]
[1730475501229,3.0,2518.2,2516.3,3.97404]
[1730475501230,3.97222,2517.5,2516.6,3.97349]
[1730475501428,3.97222,2517.5,2515.5,3.97532]
[1730475501429,3.9726,2517.3,2515.7,3.97503]
[1730475501745,0.8189,2517.4,2515.8,0.07947862]
[1730475502054,5.19552345,2517.9,2516.4,5.19552345]
[1730475502055,0.7741,2517.9,2516.4,5.19552345]
[1730475502270,4.74494,2518.4,2516.8,5.19552345]
[1730475502567,3.97159,2517.9,2516.9,3.97304]
[1730475502847,4.75332,2517.0,2515.5,5.19552345]
[1730475503057,3.97343,2516.8,2515.9,3.97457]
[1730475503208,3.97375,2516.6,2515.7,3.97494]
[1730475503413,0.475332,2516.9,2515.3,3.97562]
[1730475503614,0.7803,2517.0,2515.9,3.97459]
[1730475503848,3.0,2516.8,2515.9,3.97459]
[1730475504058,3.97361,2516.6,2515.7,3.97493]
[1730475504232,7.94678,2516.8,2515.9,3.97461]
[1730475504436,3.97334,2516.8,2515.9,3.97461]
[1730475504621,3.97334,2516.8,2515.9,4.769565]
[1730475504965,3.97334,2516.8,2515.9,3.97461]
[1730475505254,3.7803,2517.0,2515.1,5.95092345]
[1730475505450,3.97381,2516.5,2515.6,3.9751]
[1730475505669,3.97383,2516.5,2515.2,3.97582]
[1730475505956,3.97383,2516.5,2512.7,1.9400596]
[1730475505957,3.0,2516.2,2514.4,4.77499]
[1730475506158,7.7741,2516.3,2515.6,3.97503]
[1730475506461,3.97519,2515.6,2514.3,3.97711]
[1730475506626,3.97554,2515.4,2514.5,3.97682]
[1730475506826,0.8,2516.1,2515.4,3.97538]
[1730475507047,3.0,2516.0,2515.1,3.97585]
[1730475507261,3.0,2516.0,2514.6,0.397682]
[1730475507262,3.0,2516.0,2515.5,0.04032975]
[1730475507445,3.97504,2515.7,2514.9,3.9762]
[1730475507633,3.97504,2515.7,2513.9,9.96292345]
[1730475507634,3.97576,2515.3,2514.6,3.97677]
[1730475507829,6.97552,2515.4,2515.0,0.04092714]
[1730475508025,3.97567,2515.3,2514.6,3.97677]
[1730475508408,3.97538,2515.5,2512.5,1.6933924]
[1730475508409,3.97598,2515.1,2513.5,0.7896]
[1730475508544,3.8179,2515.2,2514.7,0.04128568]
[1730475508862,3.8179,2515.2,2514.1,3.97754]
[1730475508863,6.97616,2515.0,2514.1,3.97754]
[1730475509068,6.9763,2514.9,2514.8,0.04274367]
[1730475509284,3.0,2515.0,2513.6,0.07955605]
[1730475509426,1.597266,2515.2,2513.7,4.05770633]
[1730475509427,0.8179,2515.2,2513.7,4.05770633]
[1730475509626,0.8179,2515.7,2515.1,3.97598]
[1730475509873,3.97431,2516.2,2515.4,3.97541]
[1730475509874,3.97446,2516.1,2515.4,3.97541]
[1730475510042,0.8179,2516.2,2515.3,3.97566]
[1730475510243,0.8179,2516.2,2515.5,0.03905768]
[1730475510551,0.8179,2516.2,2515.6,0.03893823]
[1730475510758,3.9745,2516.1,2515.6,0.03893823]
[1730475510972,3.97735,2514.3,2513.9,0.62230397]
[1730475511287,0.8039,2513.9,2512.5,0.1025964]
[1730475511496,0.8039,2513.9,2512.8,0.62247258]
[1730475511786,3.97721,2514.4,2512.7,3.97978]
[1730475511787,4.78101,2514.4,2512.7,3.97978]
[1730475512094,4.78101,2514.4,2512.6,0.8156]
[1730475512095,0.8039,2514.4,2513.7,3.97818]
[1730475512248,0.8039,2514.4,2513.5,3.97849]
[1730475512449,4.78108,2514.4,2513.3,3.97873]
[1730475512763,3.0,2514.3,2513.4,3.97855]
[1730475513088,4.77593,2515.0,2513.7,0.7721]
[1730475513244,4.77593,2515.0,2514.0,3.97758]
[1730475513245,3.97634,2514.9,2514.0,3.97758]
[1730475513589,0.7997,2515.0,2514.4,3.97699]
[1730475514288,4.77587,2515.0,2514.1,3.97745]
[1730475514488,0.477587,2514.9,2513.8,3.97804]
[1730475514722,3.97713,2514.4,2513.7,0.7721]
[1730475515011,3.97656,2514.8,2514.0,3.97767]
[1730475515219,3.97616,2515.0,2514.2,3.97729]
[1730475515419,3.97682,2514.6,2513.8,3.97801]
[1730475515716,3.97634,2514.9,2514.2,3.9774]
[1730475516012,3.97648,2514.8,2514.0,3.97758]
[1730475516240,3.97713,2514.4,2513.7,3.97818]
[1730475516381,3.97822,2513.7,2512.4,5.19552345]
[1730475516580,3.97822,2513.7,2512.9,3.97935]
[1730475516776,3.97793,2513.9,2512.9,4.456325]
[1730475516981,7.79201,2514.4,2513.6,3.9782]
[1730475517294,3.0,2514.6,2513.8,3.97791]
[1730475517621,4.79125,2514.9,2513.9,4.05738173]
[1730475517779,0.8148,2514.9,2513.9,4.05735173]
[1730475517981,0.47201171,2515.6,2514.0,0.40573517]
[1730475518182,0.7818,2515.7,2514.6,3.97676]
[1730475518489,4.7569,2515.7,2514.9,3.97619]
[1730475518708,0.7818,2515.7,2514.7,0.05444291]
[1730475518887,0.7818,2515.7,2514.6,3.9767]
[1730475518888,4.75691,2515.7,2515.0,0.05390509]
[1730475519111,4.75691,2515.7,2514.8,3.97642]
[1730475519112,3.97544,2515.5,2514.8,3.97642]
[1730475519291,3.97544,2515.5,2514.6,3.97666]
[1730475519292,4.848725,2515.5,2515.1,0.05372585]
[1730475519615,6.97578,2515.3,2515.2,0.05354662]
[1730475519815,3.97619,2515.0,2514.3,3.97715]
[1730475519990,3.97619,2515.0,2514.2,4.7822]
[1730475520316,3.97555,2515.4,2513.7,9.95024345]
[1730475520317,3.97689,2514.6,2513.7,9.95024345]
[1730475520532,4.41729171,2515.4,2514.0,1.0]
[1730475520826,4.41729171,2515.4,2514.6,3.97667]
[1730475520827,3.97572,2515.3,2514.6,3.97667]
[1730475521179,3.97564,2515.4,2514.6,3.97667]
[1730475521383,3.97564,2515.4,2514.4,3.97699]
[1730475521384,0.397564,2515.4,2514.4,3.97699]
[1730475521622,4.80557,2515.8,2514.2,5.19552345]
[1730475521623,3.97599,2515.1,2514.2,3.97733]
[1730475521828,3.97644,2514.9,2514.1,4.74877]
[1730475522120,3.97646,2514.8,2514.1,0.7713]
[1730475522333,3.97639,2514.9,2514.2,3.97731]
[1730475522494,4.80548,2515.8,2514.3,0.0795387]
[1730475522495,3.97573,2515.3,2514.3,0.0795387]
[1730475522699,0.8306,2515.8,2514.9,3.97623]
[1730475523021,7.94957,2515.9,2515.1,3.97585]
[1730475523186,3.9749,2515.8,2515.1,3.97585]
[1730475523389,3.97448,2516.1,2515.2,0.07951151]
[1730475523587,3.97483,2515.9,2515.2,3.97573]
[1730475523886,3.97448,2516.1,2515.3,0.07950519]
[1730475524099,3.97448,2516.1,2515.4,3.97549]
[1730475524302,0.7922,2516.8,2515.9,3.97458]
[1730475524503,3.97338,2516.8,2516.0,3.97446]
[1730475524723,3.97371,2516.6,2515.8,0.7582]
[1730475525029,1.22087837,2517.2,2515.8,0.7582]
[1730475525331,1.22087837,2517.2,2516.1,3.97429]
[1730475525332,3.97282,2517.1,2516.1,3.97429]
[1730475525618,3.97372,2516.6,2516.1,0.06505573]
[1730475525785,3.97351,2516.7,2516.1,0.144541]
[1730475525995,3.97424,2516.2,2516.1,0.06505573]
[1730475526189,0.52656671,2516.2,2515.1,3.97598]
[1730475526428,3.97597,2515.2,2514.3,0.8008]
[1730475526612,3.97597,2515.2,2514.5,3.97693]
[1730475526613,3.97583,2515.2,2514.5,3.97693]
[1730475526814,0.5682922,2515.7,2514.4,3.97709]
[1730475527022,3.97559,2515.4,2514.7,3.9766]
[1730475527238,3.0,2515.7,2515.0,3.97598]
[1730475527239,3.97513,2515.7,2515.0,3.97598]
[1730475527442,3.97513,2515.7,2514.4,4.454729]
[1730475527443,3.9748,2515.9,2515.2,3.97572]
[1730475527741,3.9748,2515.9,2515.2,0.7967]
[1730475527742,3.97488,2515.8,2515.2,0.7967]
[1730475527949,4.74998,2515.9,2515.2,0.7967]
[1730475528104,3.97514,2515.7,2515.2,0.7967]
[1730475528304,4.74994,2515.9,2514.6,5.19552345]
[1730475528305,3.0,2515.5,2514.6,0.7999]
[1730475528512,3.97602,2515.1,2514.3,3.97723]
[1730475528712,3.97627,2515.0,2514.3,3.97723]
[1730475528908,6.97537,2515.5,2514.3,0.795473]
[1730475528909,3.97576,2515.3,2514.3,0.795473]
[1730475529143,3.97514,2515.7,2514.5,0.7999]
[1730475529344,3.9757,2515.3,2514.6,3.97666]
[1730475529515,3.9757,2515.3,2514.7,3.97651]
[1730475529707,3.9757,2515.3,2514.6,3.97666]
[1730475529910,7.95091,2515.5,2514.7,0.07952288]
[1730475530111,3.97582,2515.2,2514.7,0.07952288]
[1730475530341,3.97582,2515.2,2514.6,3.97666]
[1730475530540,3.97573,2515.3,2514.6,3.97666]
[1730475530541,3.97573,2515.3,2514.7,3.9766]
[1730475530744,3.97573,2515.3,2514.7,4.05612289]
[1730475530956,3.0,2516.0,2514.7,0.07952289]
[1730475531125,3.0,2516.0,2514.5,0.7999]
[1730475531126,1.590601,2516.0,2514.6,9.25172022]
[1730475531326,0.8212,2516.5,2515.5,0.7827]
[1730475531327,3.97487,2515.9,2515.5,0.7827]
[1730475531514,0.7948,2516.2,2514.8,0.829]
[1730475531713,3.97701,2514.5,2514.0,1.0]
[1730475532012,0.7948,2515.4,2514.1,4.05227978]
[1730475532013,3.97654,2514.8,2514.1,4.05227978]
[1730475532213,3.97599,2515.1,2514.2,0.07953616]
[1730475532413,3.97654,2514.8,2514.2,0.07451353]
[1730475532718,3.7948,2515.4,2514.2,0.07451353]
[1730475532924,3.97559,2515.4,2514.7,3.97652]
[1730475533128,3.9756,2515.4,2514.2,0.07451353]
[1730475533324,3.97562,2515.4,2514.7,3.97652]
[1730475533623,3.97562,2515.4,2514.0,1.0]
[1730475533624,3.97615,2515.0,2514.3,3.97718]
[1730475533815,3.97615,2515.0,2514.3,3.97716]
[1730475534015,4.373102,2515.4,2514.3,3.97716]
[1730475534016,3.9759,2515.2,2514.3,3.97716]
[1730475534215,3.9759,2515.2,2514.0,4.97769]
[1730475534216,3.9759,2515.2,2514.5,3.9769]
[1730475534562,3.9759,2515.2,2514.4,0.07953241]
[1730475534563,3.97584,2515.2,2514.6,3.97676]
[1730475534757,3.97575,2515.3,2514.6,3.97664]
[1730475534942,3.97514,2515.7,2515.0,3.97612]
[1730475535252,3.97545,2515.5,2514.8,4.05586695]
[1730475535457,3.97545,2515.5,2514.8,3.97645]
[1730475535657,3.97552,2515.4,2514.8,3.97645]
[1730475535863,3.9756,2515.4,2514.8,3.97641]
[1730475536049,3.9754,2515.5,2514.7,0.7953]
[1730475536255,3.97478,2515.9,2515.3,3.97558]
[1730475536417,1.590319,2516.5,2515.5,4.77065]
[1730475536418,3.97419,2516.3,2515.5,4.77065]
[1730475536726,3.97418,2516.3,2515.5,0.7953]
[1730475537056,3.97418,2516.3,2515.6,3.97507]
[1730475537252,3.97429,2516.2,2515.6,3.97507]
[1730475537462,3.97418,2516.3,2515.7,3.97501]
[1730475537635,3.97441,2516.1,2515.6,3.97507]
[1730475537837,7.94842,2516.3,2515.6,7.95016]
[1730475538133,3.97391,2516.5,2515.7,3.97487]
[1730475538448,3.97406,2516.4,2515.8,4.38583391]
[1730475538761,3.97401,2516.4,2515.8,3.97478]
[1730475538922,3.97372,2516.6,2515.6,0.874546]
[1730475539264,0.4907922,2516.9,2516.4,3.97392]
[1730475539265,3.97314,2516.9,2516.4,3.97392]
[1730475539427,3.97314,2516.9,2516.3,4.76106]
[1730475539428,7.94642,2516.9,2516.3,4.76106]
[1730475539755,3.97268,2517.2,2516.4,3.97383]
[1730475539964,3.97295,2517.1,2516.5,3.97369]
[1730475540265,4.43161385,2517.6,2517.0,3.97289]
[1730475540564,4.43161385,2517.6,2516.5,4.847192]
[1730475540565,0.7671,2518.1,2517.1,4.75982]
[1730475540861,3.97173,2517.8,2517.2,3.97266]
[1730475541023,3.97207,2517.6,2517.1,0.787]
[1730475541220,4.43128385,2517.8,2516.6,0.787]
[1730475541454,3.97333,2516.8,2516.1,0.787]
[1730475541661,3.97379,2516.5,2516.1,0.787]
[1730475541863,3.97301,2517.0,2516.4,3.97391]
[1730475542019,0.7671,2517.4,2516.3,3.97408]
[1730475542365,0.7671,2517.4,2516.2,0.07948321]
[1730475542366,3.97258,2517.3,2516.6,3.97359]
[1730475542524,0.473968,2517.2,2516.2,3.97424]
[1730475542864,3.97279,2517.2,2516.6,3.97346]
[1730475543160,0.7671,2517.4,2516.4,3.9739]
[1730475543320,3.97314,2516.9,2516.2,7.94831]
[1730475543516,3.97347,2516.7,2516.1,0.787]
[1730475543848,3.97322,2516.9,2516.3,3.974]
[1730475544166,3.97322,2516.9,2515.8,3.97482]
[1730475544167,3.97385,2516.5,2515.8,3.97474]
[1730475544468,4.370482,2516.9,2515.7,4.75122]
[1730475544469,3.97418,2516.3,2515.7,4.75122]
[1730475544622,3.97378,2516.5,2515.9,3.97463]
[1730475544822,3.97408,2516.3,2515.7,8.72606]
[1730475545044,3.97394,2516.4,2515.5,0.41116984]